[Event "Late-Titled-Tuesday-Blitz-July-09-2024"]
[Site "Chess.com"]
[Date "2024.07.09"]
[Round "3"]
[White "EsmeraldasAnderson03"]
[Black "glucolisis04"]
[Result "1-0"]
[WhiteElo "2536"]
[BlackElo "2292"]
[TimeControl "180+1"]
[EndTime "14:28:08 PDT"]
[Termination "EsmeraldasAnderson03 won by resignation"]

1. d4 {[%clk 0:02:59.8]} 1... Nf6 {[%clk 0:02:59.9]} 2. c4 {[%clk 0:02:57.2]}
2... e6 {[%clk 0:02:59.8]} 3. Nc3 {[%clk 0:02:56.7]} 3... d5 {[%clk 0:03:00.3]}
4. cxd5 {[%clk 0:02:55.8]} 4... exd5 {[%clk 0:03:01.2]} 5. Bg5 {[%clk
0:02:55.9]} 5... c6 {[%clk 0:03:01.2]} 6. e3 {[%clk 0:02:56]} 6... Be7 {[%clk
0:03:01.4]} 7. Qc2 {[%clk 0:02:56.4]} 7... Nbd7 {[%clk 0:03:01.7]} 8. Bd3 {[%clk
0:02:56.7]} 8... Nf8 {[%clk 0:03:01.6]} 9. Nf3 {[%clk 0:02:56.8]} 9... Ne6
{[%clk 0:03:00.6]} 10. Bh4 {[%clk 0:02:56.5]} 10... g6 {[%clk 0:03:00.2]} 11.
O-O {[%clk 0:02:56.5]} 11... O-O {[%clk 0:02:56.5]} 12. Rab1 {[%clk 0:02:57.1]}
12... Ng7 {[%clk 0:02:55.5]} 13. b4 {[%clk 0:02:57]} 13... a6 {[%clk 0:02:56]}
14. a4 {[%clk 0:02:56.9]} 14... Bf5 {[%clk 0:02:55.1]} 15. b5 {[%clk 0:02:55.9]}
15... axb5 {[%clk 0:02:53.5]} 16. axb5 {[%clk 0:02:55.7]} 16... Bxd3 {[%clk
0:02:48.4]} 17. Qxd3 {[%clk 0:02:56.6]} 17... Ra3 {[%clk 0:02:48.8]} 18. bxc6
{[%clk 0:02:48.4]} 18... bxc6 {[%clk 0:02:49.7]} 19. Ne5 {[%clk 0:02:48.4]}
19... Qe8 {[%clk 0:01:41.8]} 20. Rfc1 {[%clk 0:02:22.3]} 20... Nf5 {[%clk
0:01:34.9]} 21. Bg5 {[%clk 0:02:05.8]} 21... Ne4 {[%clk 0:00:22.8]} 22. Bxe7
{[%clk 0:01:59.9]} 22... Nxe7 {[%clk 0:00:23.2]} 23. f3 {[%clk 0:01:55.4]} 23...
Nxc3 {[%clk 0:00:19.7]} 24. Rxc3 {[%clk 0:01:56.3]} 24... Rxc3 {[%clk
0:00:19.1]} 25. Qxc3 {[%clk 0:01:57.2]} 25... Qa8 {[%clk 0:00:19.1]} 26. Rc1
{[%clk 0:01:54.7]} 26... Rc8 {[%clk 0:00:13]} 27. h4 {[%clk 0:01:52.1]} 27... f6
{[%clk 0:00:11.2]} 28. Nd7 {[%clk 0:01:51.9]} 28... Qa2 {[%clk 0:00:06.2]} 29.
Nxf6+ {[%clk 0:01:51.2]} 29... Kf7 {[%clk 0:00:06.8]} 30. Ng4 {[%clk 0:01:50.7]}
30... Rb8 {[%clk 0:00:05.3]} 31. Ne5+ {[%clk 0:01:50.1]} 31... Kg7 {[%clk
0:00:03.8]} 32. Nxc6 {[%clk 0:01:48.3]} 32... Rc8 {[%clk 0:00:04]} 33. Nb4
{[%clk 0:01:42.9]} 33... Rxc3 {[%clk 0:00:02]} 34. Nxa2 {[%clk 0:01:42.8]} 34...
Rxe3 {[%clk 0:00:02.3]} 35. Nb4 {[%clk 0:01:36.6]} 35... Kf6 {[%clk 0:00:02.2]}
36. Nc6 {[%clk 0:01:35.7]} 36... Nxc6 {[%clk 0:00:01.8]} 37. Rxc6+ {[%clk
0:01:36.6]} 37... Kf5 {[%clk 0:00:02.1]} 38. Rd6 {[%clk 0:01:36.5]} 38... Re1+
{[%clk 0:00:02.1]} 39. Kf2 {[%clk 0:01:36.7]} 39... Rd1 {[%clk 0:00:02]} 40.
Rxd5+ {[%clk 0:01:37.3]} 40... Ke6 {[%clk 0:00:01.4]} 41. Rd8 {[%clk 0:01:38]}
41... Rd2+ {[%clk 0:00:01.5]} 42. Kg3 {[%clk 0:01:38.3]} 42... h5 {[%clk
0:00:01.1]} 43. Rg8 {[%clk 0:01:37.9]} 43... Kf6 {[%clk 0:00:01.4]} 44. Rd8
{[%clk 0:01:38.4]} 44... Kf5 {[%clk 0:00:01.5]} 45. Rd5+ {[%clk 0:01:38.4]}
45... Ke6 {[%clk 0:00:01.8]} 46. Rg5 {[%clk 0:01:39.1]} 46... Kf6 {[%clk
0:00:02.2]} 47. d5 {[%clk 0:01:38.9]} 47... Rd4 {[%clk 0:00:02.2]} 48. f4 {[%clk
0:01:35.4]} 48... Rd3+ {[%clk 0:00:02.5]} 49. Kf2 {[%clk 0:01:35.9]} 49... Rd4
{[%clk 0:00:03]} 50. Ke3 {[%clk 0:01:35.7]} 50... Ra4 {[%clk 0:00:03.1]} 51. g4
{[%clk 0:01:35.7]} 51... Ra3+ {[%clk 0:00:03.4]} 52. Kd4 {[%clk 0:01:35.3]}
52... Ra4+ {[%clk 0:00:03.3]} 53. Kc5 {[%clk 0:01:33.6]} 53... Rxf4 {[%clk
0:00:03.9]} 54. gxh5 {[%clk 0:01:33.7]} 54... gxh5 {[%clk 0:00:04.3]} 55. Rxh5
{[%clk 0:01:34.6]} 55... Ke7 {[%clk 0:00:03.9]} 56. Rh7+ {[%clk 0:01:34.1]}
56... Kd8 {[%clk 0:00:04.1]} 57. h5 {[%clk 0:01:33.5]} 57... Rf6 {[%clk
0:00:03.4]} 58. Kd4 {[%clk 0:01:25.2]} 58... Rf1 {[%clk 0:00:02.3]} 59. Ke5
{[%clk 0:01:25.3]} 59... Re1+ {[%clk 0:00:02.4]} 60. Kd6 {[%clk 0:01:26]} 1-0

[Event "Late-Titled-Tuesday-Blitz-July-09-2024"]
[Site "Chess.com"]
[Date "2024.07.09"]
[Round "3"]
[White "Bauman_Guy"]
[Black "vellottiwizard"]
[Result "0-1"]
[WhiteElo "2922"]
[BlackElo "2712"]
[TimeControl "180+1"]
[EndTime "14:28:09 PDT"]
[Termination "vellottiwizard won by resignation"]

1. e4 {[%clk 0:03:00.9]} 1... e6 {[%clk 0:03:00.4]} 2. d4 {[%clk 0:03:00.8]}
2... d5 {[%clk 0:03:01.1]} 3. Nc3 {[%clk 0:03:00.7]} 3... Bb4 {[%clk 0:03:01.2]}
4. e5 {[%clk 0:03:00.6]} 4... c5 {[%clk 0:03:01.9]} 5. a3 {[%clk 0:03:00.7]}
5... Bxc3+ {[%clk 0:03:02.6]} 6. bxc3 {[%clk 0:03:01.5]} 6... Ne7 {[%clk
0:03:03.3]} 7. Qg4 {[%clk 0:03:01.7]} 7... Qc7 {[%clk 0:03:03.8]} 8. Bd3 {[%clk
0:03:00]} 8... cxd4 {[%clk 0:03:03.8]} 9. Ne2 {[%clk 0:03:00.3]} 9... dxc3
{[%clk 0:03:03.8]} 10. Qxg7 {[%clk 0:03:00]} 10... Rg8 {[%clk 0:03:04.5]} 11.
Qxh7 {[%clk 0:03:00.5]} 11... Qxe5 {[%clk 0:03:05.2]} 12. h4 {[%clk 0:02:58.5]}
12... Rxg2 {[%clk 0:02:59]} 13. Bf4 {[%clk 0:02:54.5]} 13... Qf6 {[%clk
0:02:58.4]} 14. Bg5 {[%clk 0:02:51.9]} 14... Qe5 {[%clk 0:02:55]} 15. f4 {[%clk
0:02:15.7]} 15... Qe3 {[%clk 0:02:28.8]} 16. Qh8+ {[%clk 0:02:15.6]} 16... Kd7
{[%clk 0:02:28.9]} 17. f5 {[%clk 0:02:15.5]} 17... Qf2+ {[%clk 0:02:08.8]} 18.
Kd1 {[%clk 0:02:14.9]} 18... Nbc6 {[%clk 0:02:01.3]} 19. fxe6+ {[%clk 0:02:06]}
19... fxe6 {[%clk 0:02:02.2]} 20. Qxc3 {[%clk 0:02:05.6]} 20... e5 {[%clk
0:01:49.2]} 21. Kc1 {[%clk 0:01:56.7]} 21... e4 {[%clk 0:01:43.7]} 22. Bb5
{[%clk 0:01:56.4]} 22... a6 {[%clk 0:01:29.9]} 23. Bxc6+ {[%clk 0:01:54.1]}
23... Nxc6 {[%clk 0:01:30.8]} 24. Qg7+ {[%clk 0:01:48.2]} 24... Kd6 {[%clk
0:01:22.6]} 25. Rd1 {[%clk 0:00:32.1]} 25... Be6 {[%clk 0:00:45.2]} 26. Qxb7
{[%clk 0:00:06.5]} 26... Rxg5 {[%clk 0:00:19.2]} 27. hxg5 {[%clk 0:00:03.5]}
27... Qe3+ {[%clk 0:00:19.3]} 28. Rd2 {[%clk 0:00:02.9]} 28... Rf8 {[%clk
0:00:18.6]} 29. Kb2 {[%clk 0:00:01.5]} 29... Qxd2 {[%clk 0:00:18.4]} 30. Nc3
{[%clk 0:00:01.2]} 30... Rb8 {[%clk 0:00:18.4]} 31. Qxb8+ {[%clk 0:00:01.8]}
31... Nxb8 {[%clk 0:00:19.3]} 32. g6 {[%clk 0:00:02.6]} 32... Qg5 {[%clk
0:00:19.3]} 33. Rd1 {[%clk 0:00:01.3]} 33... Qxg6 {[%clk 0:00:19.3]} 34. Kb3
{[%clk 0:00:01.7]} 34... Nc6 {[%clk 0:00:19.5]} 35. Kb2 {[%clk 0:00:02]} 35...
Ke7 {[%clk 0:00:19.4]} 0-1

[Event "Late-Titled-Tuesday-Blitz-July-09-2024"]
[Site "Chess.com"]
[Date "2024.07.09"]
[Round "3"]
[White "Fandorine"]
[Black "Oleg_Papayan"]
[Result "1-0"]
[WhiteElo "2928"]
[BlackElo "2609"]
[TimeControl "180+1"]
[EndTime "14:28:10 PDT"]
[Termination "Fandorine won on time"]

1. d4 {[%clk 0:03:00.9]} 1... d5 {[%clk 0:03:00.2]} 2. c4 {[%clk 0:03:00.2]}
2... dxc4 {[%clk 0:03:00.8]} 3. e3 {[%clk 0:02:58.3]} 3... Nf6 {[%clk
0:03:01.2]} 4. Bxc4 {[%clk 0:02:58.3]} 4... e6 {[%clk 0:03:01.9]} 5. Nf3 {[%clk
0:02:58.9]} 5... a6 {[%clk 0:03:02.4]} 6. O-O {[%clk 0:02:59.3]} 6... c5 {[%clk
0:03:03.1]} 7. b3 {[%clk 0:02:56.2]} 7... Nbd7 {[%clk 0:02:53.4]} 8. Bb2 {[%clk
0:02:53]} 8... b6 {[%clk 0:02:43.7]} 9. d5 {[%clk 0:02:43.1]} 9... exd5 {[%clk
0:02:27.2]} 10. Bxd5 {[%clk 0:02:44]} 10... Nxd5 {[%clk 0:02:14.5]} 11. Qxd5
{[%clk 0:02:35.1]} 11... Ra7 {[%clk 0:02:15.1]} 12. Rd1 {[%clk 0:02:25.4]} 12...
Bb7 {[%clk 0:02:12.9]} 13. Qf5 {[%clk 0:02:23.2]} 13... Qe7 {[%clk 0:01:44.9]}
14. Nc3 {[%clk 0:02:08.3]} 14... Qe6 {[%clk 0:01:29.5]} 15. Qf4 {[%clk
0:01:51.5]} 15... Be7 {[%clk 0:01:29.7]} 16. e4 {[%clk 0:01:40.6]} 16... O-O
{[%clk 0:01:24.6]} 17. Nd5 {[%clk 0:01:40.8]} 17... Bxd5 {[%clk 0:00:57.9]} 18.
exd5 {[%clk 0:01:28.4]} 18... Qd6 {[%clk 0:00:57.8]} 19. Qxd6 {[%clk 0:01:09.7]}
19... Bxd6 {[%clk 0:00:58.7]} 20. a4 {[%clk 0:01:06.3]} 20... Re8 {[%clk
0:00:50.6]} 21. Nd2 {[%clk 0:00:58.1]} 21... Be5 {[%clk 0:00:37.6]} 22. Bxe5
{[%clk 0:00:52.7]} 22... Nxe5 {[%clk 0:00:37.9]} 23. Nc4 {[%clk 0:00:46.8]}
23... Nxc4 {[%clk 0:00:21.8]} 24. bxc4 {[%clk 0:00:47.7]} 24... Re4 {[%clk
0:00:21.6]} 25. Rdc1 {[%clk 0:00:25.5]} 25... Kf8 {[%clk 0:00:14.8]} 26. Rab1
{[%clk 0:00:25.5]} 26... Rb7 {[%clk 0:00:14.3]} 27. Kf1 {[%clk 0:00:18.9]} 27...
Ke7 {[%clk 0:00:11.7]} 28. a5 {[%clk 0:00:14.4]} 28... b5 {[%clk 0:00:07]} 29.
cxb5 {[%clk 0:00:14.9]} 29... Rxb5 {[%clk 0:00:06.4]} 30. Rxb5 {[%clk 0:00:15]}
30... axb5 {[%clk 0:00:07.3]} 31. Rxc5 {[%clk 0:00:15.3]} 31... b4 {[%clk
0:00:01.4]} 32. Rb5 {[%clk 0:00:15.6]} 32... Kd6 {[%clk 0:00:01.1]} 33. a6
{[%clk 0:00:15.8]} 1-0

[Event "Late-Titled-Tuesday-Blitz-July-09-2024"]
[Site "Chess.com"]
[Date "2024.07.09"]
[Round "3"]
[White "th3d4rkness"]
[Black "DanLowinger"]
[Result "0-1"]
[WhiteElo "2260"]
[BlackElo "2410"]
[TimeControl "180+1"]
[EndTime "14:28:12 PDT"]
[Termination "DanLowinger won on time"]

1. e4 {[%clk 0:03:00.9]} 1... e5 {[%clk 0:02:57.7]} 2. Nf3 {[%clk 0:03:00.3]}
2... Nc6 {[%clk 0:02:58.3]} 3. d4 {[%clk 0:03:00.6]} 3... exd4 {[%clk
0:02:57.5]} 4. Bc4 {[%clk 0:03:00.8]} 4... Nf6 {[%clk 0:02:56.9]} 5. e5 {[%clk
0:03:00.9]} 5... d5 {[%clk 0:02:56.9]} 6. Bb5 {[%clk 0:03:01.1]} 6... Nd7 {[%clk
0:02:56]} 7. O-O {[%clk 0:02:54.2]} 7... Ndb8 {[%clk 0:02:53.1]} 8. Nxd4 {[%clk
0:02:50.7]} 8... Be7 {[%clk 0:02:51.6]} 9. Be3 {[%clk 0:02:35.4]} 9... O-O
{[%clk 0:02:50.4]} 10. f4 {[%clk 0:02:29.2]} 10... Nxd4 {[%clk 0:02:45.7]} 11.
Bxd4 {[%clk 0:02:28.8]} 11... c5 {[%clk 0:02:46.3]} 12. Bf2 {[%clk 0:02:26.2]}
12... Bf5 {[%clk 0:02:26.7]} 13. Bd3 {[%clk 0:02:15.3]} 13... Bxd3 {[%clk
0:02:23.3]} 14. Qxd3 {[%clk 0:02:13.5]} 14... Nc6 {[%clk 0:02:23.7]} 15. c3
{[%clk 0:02:12.2]} 15... Qd7 {[%clk 0:02:11]} 16. Nd2 {[%clk 0:02:05.4]} 16...
f6 {[%clk 0:02:07.4]} 17. exf6 {[%clk 0:01:57.5]} 17... Rxf6 {[%clk 0:02:08.3]}
18. Bh4 {[%clk 0:01:54.6]} 18... Rd6 {[%clk 0:01:48]} 19. Bxe7 {[%clk
0:01:47.6]} 19... Nxe7 {[%clk 0:01:48.9]} 20. Nf3 {[%clk 0:01:40]} 20... Qf5
{[%clk 0:01:41.4]} 21. Qe3 {[%clk 0:01:39]} 21... Ng6 {[%clk 0:01:07.1]} 22.
Qxc5 {[%clk 0:01:33.4]} 22... Rc6 {[%clk 0:01:07.3]} 23. Nd4 {[%clk 0:01:21.1]}
23... Rxc5 {[%clk 0:01:01.4]} 24. Nxf5 {[%clk 0:01:20.2]} 24... Rf8 {[%clk
0:00:59.5]} 25. g4 {[%clk 0:01:14.2]} 25... Rc4 {[%clk 0:00:48.9]} 26. Nd4
{[%clk 0:00:51.5]} 26... Rxf4 {[%clk 0:00:42.8]} 27. Rxf4 {[%clk 0:00:48.1]}
27... Nxf4 {[%clk 0:00:43.7]} 28. Rd1 {[%clk 0:00:32.5]} 28... g5 {[%clk
0:00:42.5]} 29. Kf2 {[%clk 0:00:27.1]} 29... a6 {[%clk 0:00:42]} 30. Kf3 {[%clk
0:00:21.4]} 30... b5 {[%clk 0:00:41.6]} 31. Nf5 {[%clk 0:00:17.7]} 31... b4
{[%clk 0:00:37.4]} 32. Ne3 {[%clk 0:00:08.8]} 32... bxc3 {[%clk 0:00:13.6]} 33.
Nxc4 {[%clk 0:00:06.6]} 33... c2 {[%clk 0:00:14.3]} 34. Rc1 {[%clk 0:00:01.6]}
34... Nd3 {[%clk 0:00:14.8]} 0-1

[Event "Late-Titled-Tuesday-Blitz-July-09-2024"]
[Site "Chess.com"]
[Date "2024.07.09"]
[Round "3"]
[White "Andrei_Skvortsov"]
[Black "Hikaru"]
[Result "0-1"]
[WhiteElo "2798"]
[BlackElo "3213"]
[TimeControl "180+1"]
[EndTime "14:28:14 PDT"]
[Termination "Hikaru won by resignation"]

1. e4 {[%clk 0:03:00.9]} 1... d5 {[%clk 0:03:00.3]} 2. e5 {[%clk 0:02:52.8]}
2... c5 {[%clk 0:02:57.9]} 3. c3 {[%clk 0:02:53.2]} 3... d4 {[%clk 0:02:47.7]}
4. cxd4 {[%clk 0:02:53.3]} 4... cxd4 {[%clk 0:02:46.7]} 5. Bb5+ {[%clk
0:02:53.7]} 5... Bd7 {[%clk 0:02:46.6]} 6. e6 {[%clk 0:02:53.8]} 6... fxe6
{[%clk 0:02:43.5]} 7. Bc4 {[%clk 0:02:53.1]} 7... Qc7 {[%clk 0:02:37]} 8. d3
{[%clk 0:02:50.9]} 8... Nc6 {[%clk 0:02:26.1]} 9. a3 {[%clk 0:02:32.3]} 9... Ne5
{[%clk 0:02:23.6]} 10. Nd2 {[%clk 0:02:24.1]} 10... b5 {[%clk 0:02:21.5]} 11.
Ba2 {[%clk 0:02:18.9]} 11... Nxd3+ {[%clk 0:02:21.8]} 12. Kf1 {[%clk 0:02:19.2]}
12... Rc8 {[%clk 0:02:21.8]} 13. Nb3 {[%clk 0:02:18.6]} 13... Nc5 {[%clk
0:02:01.6]} 14. Nxd4 {[%clk 0:02:17.6]} 14... e5 {[%clk 0:02:02]} 15. Nde2
{[%clk 0:02:17.2]} 15... Nf6 {[%clk 0:01:59.7]} 16. Nf3 {[%clk 0:02:16.2]} 16...
e6 {[%clk 0:01:58.2]} 17. Be3 {[%clk 0:02:11.9]} 17... Ng4 {[%clk 0:01:58]} 18.
Rc1 {[%clk 0:01:57.3]} 18... Nxe3+ {[%clk 0:01:58]} 19. fxe3 {[%clk 0:01:58.2]}
19... e4 {[%clk 0:01:46.5]} 20. Nfd4 {[%clk 0:01:56.5]} 20... Qe5 {[%clk
0:01:46.4]} 21. Nf4 {[%clk 0:01:47.6]} 21... Bd6 {[%clk 0:01:46.3]} 22. b4
{[%clk 0:01:45.7]} 22... Nd3 {[%clk 0:01:20.3]} 23. Rxc8+ {[%clk 0:01:34.8]}
23... Bxc8 {[%clk 0:01:21.2]} 24. Nxd3 {[%clk 0:01:06]} 24... exd3 {[%clk
0:01:22.1]} 25. Qxd3 {[%clk 0:00:50.8]} 25... O-O+ {[%clk 0:01:22.1]} 26. Ke2
{[%clk 0:00:51.2]} 26... Qg5 {[%clk 0:01:21.7]} 27. Qe4 {[%clk 0:00:42]} 27...
Kh8 {[%clk 0:01:22.1]} 28. h4 {[%clk 0:00:30.7]} 28... Qf6 {[%clk 0:01:15.2]}
29. Bb1 {[%clk 0:00:26.3]} 29... Qh6 {[%clk 0:01:11.1]} 30. Nf3 {[%clk
0:00:24.7]} 30... e5 {[%clk 0:01:00.7]} 31. Qd5 {[%clk 0:00:16.4]} 31... Bg4
{[%clk 0:00:57.2]} 32. Rd1 {[%clk 0:00:14.4]} 32... Be7 {[%clk 0:00:49.8]} 33.
Be4 {[%clk 0:00:13.9]} 33... Qf6 {[%clk 0:00:36.7]} 34. Qxb5 {[%clk 0:00:11.7]}
34... Bc8 {[%clk 0:00:36.3]} 35. Qd5 {[%clk 0:00:10.9]} 35... Bg4 {[%clk
0:00:33]} 36. Rc1 {[%clk 0:00:07.8]} 36... Qa6+ {[%clk 0:00:31.2]} 37. Kf2
{[%clk 0:00:07.3]} 37... Qxa3 {[%clk 0:00:31.4]} 38. Qxe5 {[%clk 0:00:07.8]}
38... Bxh4+ {[%clk 0:00:26.7]} 39. Kg1 {[%clk 0:00:06.2]} 39... Qxc1+ {[%clk
0:00:26.8]} 40. Kh2 {[%clk 0:00:06.6]} 40... Bd8 {[%clk 0:00:26.8]} 41. Qd6
{[%clk 0:00:05.7]} 41... Bc7 {[%clk 0:00:26.9]} 0-1

[Event "Late-Titled-Tuesday-Blitz-July-09-2024"]
[Site "Chess.com"]
[Date "2024.07.09"]
[Round "3"]
[White "secretworker2027"]
[Black "Tactrics"]
[Result "1-0"]
[WhiteElo "2704"]
[BlackElo "2904"]
[TimeControl "180+1"]
[EndTime "14:28:15 PDT"]
[Termination "secretworker2027 won by checkmate"]

1. e4 {[%clk 0:02:59.4]} 1... e6 {[%clk 0:03:00.3]} 2. d4 {[%clk 0:02:58.9]}
2... d5 {[%clk 0:03:01]} 3. e5 {[%clk 0:02:59.5]} 3... c5 {[%clk 0:03:01.2]} 4.
c3 {[%clk 0:03:00.2]} 4... Qb6 {[%clk 0:03:01.7]} 5. Nf3 {[%clk 0:03:00.3]} 5...
Bd7 {[%clk 0:03:02.3]} 6. Be2 {[%clk 0:02:58.1]} 6... Bb5 {[%clk 0:03:01.7]} 7.
c4 {[%clk 0:02:58.2]} 7... Bxc4 {[%clk 0:02:59.9]} 8. Bxc4 {[%clk 0:02:58.2]}
8... dxc4 {[%clk 0:03:00.8]} 9. d5 {[%clk 0:02:58.6]} 9... Ne7 {[%clk
0:02:48.4]} 10. d6 {[%clk 0:02:54]} 10... Nd5 {[%clk 0:02:48.9]} 11. Nbd2 {[%clk
0:02:50.8]} 11... Qa6 {[%clk 0:02:44.9]} 12. O-O {[%clk 0:02:50.2]} 12... Nd7
{[%clk 0:02:41.9]} 13. Qe2 {[%clk 0:02:34.4]} 13... b5 {[%clk 0:02:29.1]} 14.
Ne4 {[%clk 0:02:31.6]} 14... h6 {[%clk 0:02:26.4]} 15. h4 {[%clk 0:02:26.2]}
15... g6 {[%clk 0:02:25.5]} 16. Be3 {[%clk 0:02:20.9]} 16... Qc6 {[%clk
0:02:21.7]} 17. a4 {[%clk 0:02:16.7]} 17... bxa4 {[%clk 0:02:08.9]} 18. Qxc4
{[%clk 0:02:07.9]} 18... N5b6 {[%clk 0:01:57.5]} 19. Qc2 {[%clk 0:01:59.5]}
19... Bg7 {[%clk 0:01:55.6]} 20. h5 {[%clk 0:01:39]} 20... O-O {[%clk
0:01:51.3]} 21. Rfe1 {[%clk 0:01:33.9]} 21... Kh7 {[%clk 0:01:34.6]} 22. Bf4
{[%clk 0:01:30.9]} 22... Nd5 {[%clk 0:01:27.9]} 23. Bg3 {[%clk 0:01:30.7]} 23...
N5b6 {[%clk 0:01:15.4]} 24. hxg6+ {[%clk 0:01:26]} 24... fxg6 {[%clk 0:01:15.5]}
25. Neg5+ {[%clk 0:01:23.4]} 25... hxg5 {[%clk 0:01:15.2]} 26. Nxg5+ {[%clk
0:01:24.3]} 26... Kh6 {[%clk 0:01:14.6]} 27. Nxe6 {[%clk 0:01:23.1]} 27... Rf5
{[%clk 0:01:04.1]} 28. Re4 {[%clk 0:01:01.1]} 28... Bxe5 {[%clk 0:00:48.5]} 29.
Rh4+ {[%clk 0:00:58.9]} 29... Rh5 {[%clk 0:00:47.5]} 30. Rxh5+ {[%clk
0:00:55.8]} 30... gxh5 {[%clk 0:00:46.5]} 31. Qf5 {[%clk 0:00:56.3]} 31... Qxd6
{[%clk 0:00:34.4]} 32. Qg5+ {[%clk 0:00:45.2]} 32... Kh7 {[%clk 0:00:34.3]} 33.
Qxh5+ {[%clk 0:00:45.4]} 33... Kg8 {[%clk 0:00:34.9]} 34. Qg6+ {[%clk
0:00:43.5]} 34... Kh8 {[%clk 0:00:34.6]} 35. Re1 {[%clk 0:00:20.6]} 35... Nf8
{[%clk 0:00:04.3]} 36. Bxe5+ {[%clk 0:00:17.4]} 36... Qxe5 {[%clk 0:00:02.2]}
37. Qh6+ {[%clk 0:00:17.5]} 37... Kg8 {[%clk 0:00:02.5]} 38. Rxe5 {[%clk
0:00:17.7]} 38... Nbd7 {[%clk 0:00:02.9]} 39. Qg7# {[%clk 0:00:17]} 1-0

[Event "Late-Titled-Tuesday-Blitz-July-09-2024"]
[Site "Chess.com"]
[Date "2024.07.09"]
[Round "3"]
[White "JoJoZP"]
[Black "tjallkompall"]
[Result "0-1"]
[WhiteElo "2518"]
[BlackElo "2788"]
[TimeControl "180+1"]
[EndTime "14:28:17 PDT"]
[Termination "tjallkompall won on time"]

1. Nf3 {[%clk 0:03:00.9]} 1... c5 {[%clk 0:02:59.8]} 2. c4 {[%clk 0:03:00.8]}
2... Nf6 {[%clk 0:02:59.9]} 3. Nc3 {[%clk 0:03:00.3]} 3... Nc6 {[%clk
0:03:00.2]} 4. e3 {[%clk 0:03:00.5]} 4... e5 {[%clk 0:03:00.6]} 5. d4 {[%clk
0:03:00.3]} 5... e4 {[%clk 0:03:00.9]} 6. d5 {[%clk 0:02:59.5]} 6... exf3 {[%clk
0:03:00.6]} 7. dxc6 {[%clk 0:02:59.8]} 7... dxc6 {[%clk 0:02:58.6]} 8. Qxd8+
{[%clk 0:03:00.5]} 8... Kxd8 {[%clk 0:02:59.1]} 9. gxf3 {[%clk 0:03:01]} 9... g6
{[%clk 0:02:56.1]} 10. b3 {[%clk 0:02:59.6]} 10... Bg7 {[%clk 0:02:55.9]} 11.
Bb2 {[%clk 0:03:00.3]} 11... Kc7 {[%clk 0:02:55.4]} 12. Ne4 {[%clk 0:02:56.3]}
12... Nh5 {[%clk 0:02:53.8]} 13. Bxg7 {[%clk 0:02:53.2]} 13... Nxg7 {[%clk
0:02:54.7]} 14. Nxc5 {[%clk 0:02:53.8]} 14... Rd8 {[%clk 0:02:49.3]} 15. Rd1
{[%clk 0:02:45.5]} 15... Rxd1+ {[%clk 0:02:48.1]} 16. Kxd1 {[%clk 0:02:46.4]}
16... a5 {[%clk 0:02:48.5]} 17. a3 {[%clk 0:02:38.2]} 17... b6 {[%clk
0:02:48.1]} 18. Ne4 {[%clk 0:02:35.5]} 18... Be6 {[%clk 0:02:48.7]} 19. Kc2
{[%clk 0:02:27.8]} 19... h6 {[%clk 0:02:42.6]} 20. Bd3 {[%clk 0:02:21.7]} 20...
Nf5 {[%clk 0:02:42.2]} 21. Kc3 {[%clk 0:02:08.1]} 21... Rd8 {[%clk 0:02:35.5]}
22. Bc2 {[%clk 0:02:00.3]} 22... Nh4 {[%clk 0:02:32.6]} 23. f4 {[%clk
0:01:58.8]} 23... Bf5 {[%clk 0:02:25.1]} 24. c5 {[%clk 0:01:43.4]} 24... bxc5
{[%clk 0:01:54.6]} 25. Nxc5 {[%clk 0:01:41.6]} 25... Bxc2 {[%clk 0:01:54.8]} 26.
Kxc2 {[%clk 0:01:40.9]} 26... Nf3 {[%clk 0:01:55.4]} 27. Nd3 {[%clk 0:01:28.8]}
27... Kb6 {[%clk 0:01:49.3]} 28. h3 {[%clk 0:01:26.8]} 28... Rd5 {[%clk
0:01:47.6]} 29. a4 {[%clk 0:00:52.2]} 29... Rh5 {[%clk 0:01:43.9]} 30. Kd1
{[%clk 0:00:51]} 30... g5 {[%clk 0:01:26.4]} 31. Ke2 {[%clk 0:00:43]} 31... g4
{[%clk 0:01:11.9]} 32. f5 {[%clk 0:00:09.9]} 32... Rh4 {[%clk 0:00:20.4]} 33.
Nf4 {[%clk 0:00:07.9]} 33... Ng5 {[%clk 0:00:18.8]} 34. Kf1 {[%clk 0:00:03.9]}
34... gxh3 {[%clk 0:00:18.8]} 35. f6 {[%clk 0:00:01.6]} 35... Kc5 {[%clk
0:00:17.7]} 0-1

[Event "Late-Titled-Tuesday-Blitz-July-09-2024"]
[Site "Chess.com"]
[Date "2024.07.09"]
[Round "3"]
[White "Skatchkov_V"]
[Black "VladimirKramnik"]
[Result "0-1"]
[WhiteElo "2702"]
[BlackElo "2984"]
[TimeControl "180+1"]
[EndTime "14:28:18 PDT"]
[Termination "VladimirKramnik won by resignation"]

1. d4 {[%clk 0:03:00.9]} 1... Nf6 {[%clk 0:02:58.5]} 2. c4 {[%clk 0:03:00.9]}
2... e6 {[%clk 0:02:59.1]} 3. Nf3 {[%clk 0:03:01]} 3... d5 {[%clk 0:02:58.3]} 4.
g3 {[%clk 0:03:01.2]} 4... Bb4+ {[%clk 0:02:55.5]} 5. Bd2 {[%clk 0:03:01.1]}
5... Bd6 {[%clk 0:02:55.4]} 6. Bg2 {[%clk 0:03:00]} 6... O-O {[%clk 0:02:55.1]}
7. Qc2 {[%clk 0:02:57.8]} 7... Nc6 {[%clk 0:02:53.5]} 8. O-O {[%clk 0:02:52.6]}
8... h6 {[%clk 0:02:52.4]} 9. Bf4 {[%clk 0:02:18.8]} 9... Bxf4 {[%clk 0:02:33]}
10. gxf4 {[%clk 0:02:19]} 10... Ne7 {[%clk 0:02:31.6]} 11. Nc3 {[%clk
0:02:13.6]} 11... c6 {[%clk 0:02:27.9]} 12. e3 {[%clk 0:02:11.9]} 12... Nf5
{[%clk 0:02:18.7]} 13. Kh1 {[%clk 0:02:04.1]} 13... b5 {[%clk 0:02:10.8]} 14.
cxb5 {[%clk 0:01:55.2]} 14... cxb5 {[%clk 0:02:10.5]} 15. Nxb5 {[%clk
0:01:45.6]} 15... Ba6 {[%clk 0:02:08.2]} 16. a4 {[%clk 0:01:45.8]} 16... Qb6
{[%clk 0:02:01.7]} 17. Rfc1 {[%clk 0:01:37]} 17... Bxb5 {[%clk 0:01:48.2]} 18.
axb5 {[%clk 0:01:37]} 18... Qxb5 {[%clk 0:01:48.8]} 19. Ne5 {[%clk 0:01:34.3]}
19... a5 {[%clk 0:01:38.9]} 20. Ra2 {[%clk 0:01:14.4]} 20... Nd6 {[%clk
0:01:32]} 21. Bf1 {[%clk 0:01:07.1]} 21... Qb7 {[%clk 0:01:18.6]} 22. Qc7 {[%clk
0:01:01.9]} 22... Qb3 {[%clk 0:01:10.8]} 23. Raa1 {[%clk 0:00:56.1]} 23... Nde4
{[%clk 0:01:06]} 24. Qc2 {[%clk 0:00:52.6]} 24... Qb6 {[%clk 0:00:55.8]} 25. f3
{[%clk 0:00:52.6]} 25... Nd6 {[%clk 0:00:55.7]} 26. Bd3 {[%clk 0:00:52.2]} 26...
Rfc8 {[%clk 0:00:53.7]} 27. Qd2 {[%clk 0:00:52.7]} 27... Rxc1+ {[%clk
0:00:49.1]} 28. Qxc1 {[%clk 0:00:53.1]} 28... Rc8 {[%clk 0:00:42.4]} 29. Qd2
{[%clk 0:00:52.9]} 29... Nc4 {[%clk 0:00:40.5]} 30. Bxc4 {[%clk 0:00:46.9]}
30... dxc4 {[%clk 0:00:41.4]} 31. Ra4 {[%clk 0:00:23.7]} 31... c3 {[%clk
0:00:30.2]} 32. bxc3 {[%clk 0:00:24.6]} 32... Qb1+ {[%clk 0:00:30]} 33. Kg2
{[%clk 0:00:24.2]} 33... Rb8 {[%clk 0:00:26.9]} 34. Ra2 {[%clk 0:00:20.5]} 34...
a4 {[%clk 0:00:27]} 35. c4 {[%clk 0:00:19.4]} 35... a3 {[%clk 0:00:26.5]} 36.
Nd3 {[%clk 0:00:11.2]} 36... Rb3 {[%clk 0:00:26.3]} 37. Nc1 {[%clk 0:00:03.4]}
37... Rb2 {[%clk 0:00:25.2]} 38. Rxb2 {[%clk 0:00:03.8]} 38... Qxb2 {[%clk
0:00:25]} 39. Qf2 {[%clk 0:00:01.3]} 39... Qxc1 {[%clk 0:00:24.2]} 0-1